[Event "FIDE World Rapid Chess Championship 2021"]
[White "Petrovskyi, Vadym"]
[Black "Nevednichy, Vladislav"]
[WhiteFideId "14165210"]
[BlackFideId "1205730"]
[WhiteElo "2282"]
[BlackElo "2425"]
[Result "1/2-1/2"]
[Round "10"]
[TimeControl "900+10"]
[Date "2021.12.28"]
[WhiteClock "0:00:45"]
[BlackClock "0:00:39"]

1. e4 {[%clk 0:15:00]}  c5 {[%clk 0:15:00]} 2. Nf3 {[%clk 0:15:00]}  d6 {[%clk 0:15:00]} 3. d4 {[%clk 0:15:00]}  cxd4 {[%clk 0:15:00]} 4. Nxd4 {[%clk 0:15:00]}  Nf6 {[%clk 0:15:54]} 5. Nc3 {[%clk 0:15:18]}  Nc6 {[%clk 0:15:54]} 6. Bg5 {[%clk 0:15:18]}  e6 {[%clk 0:15:54]} 7. Qd2 {[%clk 0:15:18]}  a6 {[%clk 0:15:54]} 8. O-O-O {[%clk 0:15:18]}  Bd7 {[%clk 0:15:54]} 9. f4 {[%clk 0:15:18]}  h6 {[%clk 0:15:54]} 10. Bh4 {[%clk 0:15:18]}  g5 {[%clk 0:15:54]} 11. fxg5 {[%clk 0:15:18]}  Ng4 {[%clk 0:15:54]} 12. Nf3 {[%clk 0:15:18]}  hxg5 {[%clk 0:15:54]} 13. Bg3 {[%clk 0:14:25]}  Be7 {[%clk 0:13:54]} 14. Kb1 {[%clk 0:14:25]}  Nge5 {[%clk 0:13:54]} 15. Be2 {[%clk 0:12:00]}  b5 {[%clk 0:13:55]} 16. a3 {[%clk 0:12:00]}  Rb8 {[%clk 0:13:55]} 17. Rhe1 {[%clk 0:10:45]}  f6 {[%clk 0:12:38]} 18. h4 {[%clk 0:10:45]}  gxh4 {[%clk 0:08:39]} 19. Nxh4 {[%clk 0:09:40]}  b4 {[%clk 0:08:39]} 20. axb4 {[%clk 0:09:40]}  Rxb4 {[%clk 0:08:39]} 21. Rh1 {[%clk 0:09:43]}  Qb6 {[%clk 0:06:05]} 22. Nf5 {[%clk 0:07:47]}  Rxb2+ {[%clk 0:01:24]} 23. Kc1 {[%clk 0:06:02]}  Rxh1 {[%clk 0:01:24]} 24. Rxh1 {[%clk 0:06:02]}  Kd8 {[%clk 0:01:24]} 25. Rh8+ {[%clk 0:06:07]}  Kc7 {[%clk 0:00:00]} 26. Ne3 {[%clk 0:06:07]}  Nb4 {[%clk 0:00:00]} 27. Kd1 {[%clk 0:03:13]}  Ba4 {[%clk 0:00:10]} 28. Bf2 {[%clk 0:03:13]}  Bxc2+ {[%clk 0:00:21]} 29. Qxc2 {[%clk 0:01:31]}  Rxc2 {[%clk 0:00:21]} 30. Ned5+ {[%clk 0:01:31]}  exd5 {[%clk 0:00:21]} 31. Bxb6+ {[%clk 0:01:31]}  Kxb6 {[%clk 0:00:21]} 32. Nxd5+ {[%clk 0:01:31]}  Nxd5 {[%clk 0:00:21]} 33. Kxc2 {[%clk 0:01:31]}  Ne3+ {[%clk 0:00:22]} 34. Kd2 {[%clk 0:01:50]}  Nxg2 {[%clk 0:01:03]} 35. Rb8+ {[%clk 0:01:50]}  Kc5 {[%clk 0:01:03]} 36. Bxa6 {[%clk 0:01:50]}  Nh4 {[%clk 0:01:03]} 37. Re8 {[%clk 0:01:50]}  Nhg6 {[%clk 0:01:03]} 38. Ke3 {[%clk 0:01:50]}  d5 {[%clk 0:01:03]} 39. exd5 {[%clk 0:01:50]}  Kxd5 {[%clk 0:01:03]} 40. Bb7+ {[%clk 0:01:50]}  Ke6 {[%clk 0:01:03]} 41. Rc8 {[%clk 0:01:50]}  Nh4 {[%clk 0:01:03]} 42. Ra8 {[%clk 0:01:50]}  Nf5+ {[%clk 0:01:03]} 43. Kf4 {[%clk 0:01:50]}  Nd3+ {[%clk 0:01:03]} 44. Kg4 {[%clk 0:01:50]}  Nd6 {[%clk 0:01:03]} 45. Ba6 {[%clk 0:01:50]}  f5+ {[%clk 0:01:03]} 46. Kg3 {[%clk 0:01:50]}  Ne5 {[%clk 0:01:03]} 47. Be2 {[%clk 0:01:28]}  Ne4+ {[%clk 0:01:10]} 48. Kg2 {[%clk 0:01:28]}  Kf6 {[%clk 0:01:10]} 49. Ra6+ {[%clk 0:01:28]}  Kg5 {[%clk 0:01:10]} 50. Re6 {[%clk 0:01:28]}  Bf6 {[%clk 0:01:10]} 51. Bd1 {[%clk 0:01:31]}  Nd3 {[%clk 0:01:10]} 52. Re8 {[%clk 0:01:31]}  Kf4 {[%clk 0:01:10]} 53. Bh5 {[%clk 0:01:31]}  Ke3 {[%clk 0:01:10]} 54. Bd1 {[%clk 0:01:31]}  Nf4+ {[%clk 0:01:10]} 55. Kf1 {[%clk 0:01:31]}  Bd4 {[%clk 0:00:39]} 56. Bc2 {[%clk 0:00:45]}  Nd3 {[%clk 0:00:39]} 57. Rf8 {[%clk 0:00:45]}  Nb4 {[%clk 0:00:39]} 58. Ba4 {[%clk 0:00:45]}  f4 {[%clk 0:00:39]} 59. Re8 {[%clk 0:00:45]}  f3 {[%clk 0:00:39]} 60. Bd1 {[%clk 0:00:45]}  Nd3 {[%clk 0:00:39]} 61. Rxe4+ {[%clk 0:00:45]}  Kxe4 {[%clk 0:00:39]} 62. Bxf3+ {[%clk 0:00:45]}  Kxf3 {[%clk 0:00:39]} 1/2-1/2


[Site "http://www.Chess.com"]

[Event "FIDE World Rapid Chess Championship 2021"]
[White "Dvirnyy, Danyyil"]
[Black "Blanco Acevedo, Cristobal Jose"]
[WhiteFideId "817570"]
[BlackFideId "3900525"]
[WhiteElo "2550"]
[BlackElo "2289"]
[Result "1-0"]
[Round "10"]
[TimeControl "900+10"]
[Date "2021.12.28"]
[WhiteClock "0:01:13"]
[BlackClock "0:00:08"]

1. e4 {[%clk 0:15:00]}  c5 {[%clk 0:15:00]} 2. Nf3 {[%clk 0:15:00]}  Nc6 {[%clk 0:15:00]} 3. Nc3 {[%clk 0:14:13]}  e5 {[%clk 0:15:45]} 4. Bc4 {[%clk 0:14:13]}  Be7 {[%clk 0:15:45]} 5. d3 {[%clk 0:14:13]}  h6 {[%clk 0:15:45]} 6. Nd2 {[%clk 0:14:13]}  Nf6 {[%clk 0:15:45]} 7. Nf1 {[%clk 0:14:13]}  d6 {[%clk 0:15:45]} 8. Ne3 {[%clk 0:14:13]}  O-O {[%clk 0:15:45]} 9. h4 {[%clk 0:12:17]}  Na5 {[%clk 0:15:08]} 10. g4 {[%clk 0:12:17]}  Nxc4 {[%clk 0:13:20]} 11. dxc4 {[%clk 0:12:19]}  Nh7 {[%clk 0:10:22]} 12. Ng2 {[%clk 0:12:19]}  Be6 {[%clk 0:10:22]} 13. Qe2 {[%clk 0:06:41]}  Qd7 {[%clk 0:10:22]} 14. f3 {[%clk 0:06:41]}  a6 {[%clk 0:07:55]} 15. a4 {[%clk 0:06:42]}  Nf6 {[%clk 0:07:55]} 16. Ne3 {[%clk 0:06:39]}  g6 {[%clk 0:05:00]} 17. h5 {[%clk 0:06:39]}  g5 {[%clk 0:05:00]} 18. a5 {[%clk 0:06:39]}  Bd8 {[%clk 0:05:00]} 19. Bd2 {[%clk 0:05:24]}  b5 {[%clk 0:03:50]} 20. axb6 {[%clk 0:05:24]}  Bxb6 {[%clk 0:03:50]} 21. O-O {[%clk 0:05:24]}  Rfb8 {[%clk 0:03:50]} 22. Ra3 {[%clk 0:05:24]}  Bd8 {[%clk 0:03:50]} 23. b3 {[%clk 0:05:24]}  Ne8 {[%clk 0:03:50]} 24. Rfa1 {[%clk 0:05:20]}  Qb7 {[%clk 0:02:40]} 25. Qd3 {[%clk 0:05:20]}  Qc6 {[%clk 0:02:40]} 26. Ncd5 {[%clk 0:05:20]}  Kh7 {[%clk 0:02:40]} 27. Ba5 {[%clk 0:04:49]}  Bxa5 {[%clk 0:02:09]} 28. Rxa5 {[%clk 0:04:49]}  Nc7 {[%clk 0:02:09]} 29. Nxc7 {[%clk 0:04:49]}  Qxc7 {[%clk 0:02:09]} 30. Rxa6 {[%clk 0:04:49]}  Rxa6 {[%clk 0:02:09]} 31. Rxa6 {[%clk 0:04:49]}  Rd8 {[%clk 0:00:55]} 32. Qc3 {[%clk 0:04:22]}  Kg7 {[%clk 0:00:55]} 33. Qd2 {[%clk 0:04:22]}  Rd7 {[%clk 0:00:55]} 34. Nd1 {[%clk 0:04:22]}  Qd8 {[%clk 0:00:30]} 35. Nc3 {[%clk 0:03:22]}  Qf6 {[%clk 0:00:30]} 36. Kg2 {[%clk 0:03:22]}  Rd8 {[%clk 0:00:30]} 37. Nb5 {[%clk 0:03:22]}  Bc8 {[%clk 0:00:30]} 38. Rxd6 {[%clk 0:01:52]}  Rxd6 {[%clk 0:00:23]} 39. Nxd6 {[%clk 0:01:52]}  Bd7 {[%clk 0:00:23]} 40. c3 {[%clk 0:01:52]}  Kf8 {[%clk 0:00:23]} 41. b4 {[%clk 0:01:52]}  Qd8 {[%clk 0:00:23]} 42. Nb7 {[%clk 0:01:52]}  Qc7 {[%clk 0:00:23]} 43. Nxc5 {[%clk 0:01:52]}  Bc8 {[%clk 0:00:23]} 44. Qd5 {[%clk 0:01:52]}  Kg7 {[%clk 0:00:05]} 45. Nd3 {[%clk 0:01:55]}  f6 {[%clk 0:00:05]} 46. c5 {[%clk 0:01:55]}  Qa7 {[%clk 0:00:05]} 47. b5 {[%clk 0:01:55]}  Qa1 {[%clk 0:00:05]} 48. Qc6 {[%clk 0:01:55]}  Qa2+ {[%clk 0:00:05]} 49. Nf2 {[%clk 0:01:55]}  Be6 {[%clk 0:00:05]} 50. b6 {[%clk 0:01:55]}  Bc4 {[%clk 0:00:05]} 51. Qd7+ {[%clk 0:01:55]}  Kh8 {[%clk 0:00:05]} 52. b7 {[%clk 0:01:55]}  Qb1 {[%clk 0:00:05]} 53. Nd1 {[%clk 0:01:13]}  Bg8 {[%clk 0:00:08]} 54. c6 {[%clk 0:01:13]}  Qc2+ {[%clk 0:00:08]} 55. Nf2 {[%clk 0:01:13]}  f5 {[%clk 0:00:08]} 56. b8=Q {[%clk 0:01:13]} 1-0


[Site "http://www.Chess.com"]

[Event "FIDE World Rapid Chess Championship 2021"]
[White "Dragnev, Valentin"]
[Black "Lopusiewicz, Piotr"]
[WhiteFideId "1634852"]
[BlackFideId "1116029"]
[WhiteElo "2409"]
[BlackElo "2197"]
[Result "1-0"]
[Round "10"]
[TimeControl "900+10"]
[Date "2021.12.28"]
[WhiteClock "0:01:50"]
[BlackClock "0:00:18"]

1. e4 {[%clk 0:15:00]}  e5 {[%clk 0:15:00]} 2. Nf3 {[%clk 0:15:00]}  Nc6 {[%clk 0:15:00]} 3. Bb5 {[%clk 0:16:09]}  a6 {[%clk 0:14:32]} 4. Ba4 {[%clk 0:16:09]}  Nf6 {[%clk 0:14:32]} 5. O-O {[%clk 0:16:09]}  Be7 {[%clk 0:14:32]} 6. d3 {[%clk 0:16:09]}  b5 {[%clk 0:14:32]} 7. Bb3 {[%clk 0:16:09]}  d6 {[%clk 0:14:32]} 8. c3 {[%clk 0:16:09]}  O-O {[%clk 0:14:32]} 9. a4 {[%clk 0:16:09]}  Bd7 {[%clk 0:14:32]} 10. Bc2 {[%clk 0:16:09]}  Re8 {[%clk 0:14:32]} 11. Re1 {[%clk 0:16:01]}  h6 {[%clk 0:10:17]} 12. Nbd2 {[%clk 0:16:01]}  Bf8 {[%clk 0:10:17]} 13. Nf1 {[%clk 0:16:01]}  Rb8 {[%clk 0:10:17]} 14. Ng3 {[%clk 0:16:01]}  g6 {[%clk 0:10:17]} 15. Bd2 {[%clk 0:16:01]}  Bg7 {[%clk 0:10:17]} 16. h3 {[%clk 0:14:50]}  b4 {[%clk 0:09:44]} 17. a5 {[%clk 0:14:50]}  Qc8 {[%clk 0:07:44]} 18. Qc1 {[%clk 0:14:28]}  Kh7 {[%clk 0:07:44]} 19. h4 {[%clk 0:14:28]}  h5 {[%clk 0:05:47]} 20. Bb3 {[%clk 0:12:51]}  Kg8 {[%clk 0:05:07]} 21. Ng5 {[%clk 0:12:51]}  Re7 {[%clk 0:05:07]} 22. Bc4 {[%clk 0:12:51]}  bxc3 {[%clk 0:05:07]} 23. bxc3 {[%clk 0:12:51]}  Nd8 {[%clk 0:03:35]} 24. Qc2 {[%clk 0:10:30]}  Bb5 {[%clk 0:03:35]} 25. Ba2 {[%clk 0:10:12]}  Qg4 {[%clk 0:01:56]} 26. Rab1 {[%clk 0:10:12]}  Qd7 {[%clk 0:01:56]} 27. d4 {[%clk 0:09:11]}  Rc8 {[%clk 0:00:53]} 28. f3 {[%clk 0:06:29]}  c5 {[%clk 0:00:24]} 29. dxe5 {[%clk 0:06:29]}  dxe5 {[%clk 0:00:24]} 30. Qc1 {[%clk 0:06:29]}  Bd3 {[%clk 0:00:24]} 31. Rb6 {[%clk 0:06:29]}  Rc6 {[%clk 0:00:29]} 32. Be3 {[%clk 0:04:52]}  c4 {[%clk 0:00:29]} 33. Qa3 {[%clk 0:04:52]}  Bf8 {[%clk 0:00:29]} 34. Qb2 {[%clk 0:04:52]}  Qc7 {[%clk 0:00:29]} 35. Nh3 {[%clk 0:04:52]}  Nd7 {[%clk 0:00:29]} 36. Rxc6 {[%clk 0:03:43]}  Nxc6 {[%clk 0:00:38]} 37. Nf2 {[%clk 0:03:43]}  Nxa5 {[%clk 0:00:38]} 38. Bg5 {[%clk 0:01:39]}  Re6 {[%clk 0:00:35]} 39. Nxd3 {[%clk 0:01:39]}  cxd3 {[%clk 0:00:35]} 40. Bxe6 {[%clk 0:01:39]}  fxe6 {[%clk 0:00:35]} 41. Qd2 {[%clk 0:01:39]}  Nc5 {[%clk 0:00:35]} 42. Nh1 {[%clk 0:01:39]}  Nc4 {[%clk 0:00:35]} 43. Qa2 {[%clk 0:01:39]}  Nd7 {[%clk 0:00:35]} 44. Rd1 {[%clk 0:01:39]}  Bc5+ {[%clk 0:00:18]} 45. Kh2 {[%clk 0:01:50]}  Qd6 {[%clk 0:00:18]} 46. Qxc4 {[%clk 0:01:50]} 1-0


[Site "http://www.Chess.com"]

[Event "FIDE World Rapid Chess Championship 2021"]
[White "Aditya, Mittal"]
[Black "Kuzmicz, Krystian"]
[WhiteFideId "35042025"]
[BlackFideId "1119125"]
[WhiteElo "1488"]
[BlackElo "2314"]
[Result "1/2-1/2"]
[Round "10"]
[TimeControl "900+10"]
[Date "2021.12.28"]
[WhiteClock "0:01:15"]
[BlackClock "0:02:13"]

1. d4 {[%clk 0:15:00]}  Nf6 {[%clk 0:15:00]} 2. c4 {[%clk 0:15:00]}  d6 {[%clk 0:15:00]} 3. Nc3 {[%clk 0:15:00]}  Bf5 {[%clk 0:14:39]} 4. g3 {[%clk 0:14:36]}  c6 {[%clk 0:14:39]} 5. Bg2 {[%clk 0:14:36]}  h6 {[%clk 0:14:39]} 6. e4 {[%clk 0:14:36]}  Bh7 {[%clk 0:14:39]} 7. Nge2 {[%clk 0:14:36]}  Nbd7 {[%clk 0:14:39]} 8. O-O {[%clk 0:14:36]}  e5 {[%clk 0:14:39]} 9. f3 {[%clk 0:12:39]}  Be7 {[%clk 0:12:31]} 10. Be3 {[%clk 0:12:39]}  O-O {[%clk 0:12:31]} 11. d5 {[%clk 0:12:39]}  Ne8 {[%clk 0:12:31]} 12. b4 {[%clk 0:12:39]}  f5 {[%clk 0:12:31]} 13. exf5 {[%clk 0:12:07]}  Bxf5 {[%clk 0:10:56]} 14. dxc6 {[%clk 0:12:07]}  bxc6 {[%clk 0:10:56]} 15. f4 {[%clk 0:12:07]}  exf4 {[%clk 0:10:56]} 16. gxf4 {[%clk 0:12:07]}  Nb6 {[%clk 0:10:56]} 17. Nd4 {[%clk 0:10:40]}  Rc8 {[%clk 0:07:30]} 18. c5 {[%clk 0:09:44]}  Nc4 {[%clk 0:05:27]} 19. Qb3 {[%clk 0:07:10]}  d5 {[%clk 0:05:27]} 20. Nxc6 {[%clk 0:07:10]}  Rxc6 {[%clk 0:05:27]} 21. Bxd5+ {[%clk 0:06:10]}  Kh8 {[%clk 0:03:56]} 22. Qxc4 {[%clk 0:06:10]}  Rg6+ {[%clk 0:03:56]} 23. Kh1 {[%clk 0:06:10]}  Nf6 {[%clk 0:03:56]} 24. Bf3 {[%clk 0:06:10]}  Bd3 {[%clk 0:03:56]} 25. Qd4 {[%clk 0:06:10]}  Bxf1 {[%clk 0:03:56]} 26. Rxf1 {[%clk 0:06:10]}  Qc8 {[%clk 0:04:07]} 27. Rg1 {[%clk 0:04:53]}  Rxg1+ {[%clk 0:03:25]} 28. Bxg1 {[%clk 0:04:53]}  Rd8 {[%clk 0:02:23]} 29. Qe3 {[%clk 0:01:15]}  Bf8 {[%clk 0:02:23]} 30. Nb5 {[%clk 0:01:15]}  Qb8 {[%clk 0:02:23]} 31. Nd4 {[%clk 0:00:44]}  Re8 {[%clk 0:01:59]} 32. Qd2 {[%clk 0:00:44]}  Ne4 {[%clk 0:01:59]} 33. Qc1 {[%clk 0:00:44]}  Qxb4 {[%clk 0:01:59]} 34. Nc6 {[%clk 0:01:15]}  Qd2 {[%clk 0:02:13]} 35. Qxd2 {[%clk 0:01:15]}  Nxd2 {[%clk 0:02:13]} 36. Bd5 {[%clk 0:01:15]}  Re1 {[%clk 0:02:13]} 37. Kg2 {[%clk 0:01:15]}  Rc1 {[%clk 0:02:13]} 38. Ne5 {[%clk 0:01:15]}  Bxc5 {[%clk 0:02:13]} 39. Bxc5 {[%clk 0:01:15]}  Rxc5 {[%clk 0:02:13]} 40. Ng6+ {[%clk 0:01:15]}  Kh7 {[%clk 0:02:13]} 41. Nf8+ {[%clk 0:01:15]} 1/2-1/2


[Site "http://www.Chess.com"]

[Event "FIDE World Rapid Chess Championship 2021"]
[White "Nasuta, Grzegorz"]
[Black "Tologontegin, Semetey"]
[WhiteFideId "1141686"]
[BlackFideId "13800574"]
[WhiteElo "2345"]
[BlackElo "2300"]
[Result "1-0"]
[Round "10"]
[TimeControl "900+10"]
[Date "2021.12.28"]
[WhiteClock "0:01:43"]
[BlackClock "0:01:10"]

1. e4 {[%clk 0:16:32]}  c5 {[%clk 0:14:42]} 2. Nf3 {[%clk 0:16:32]}  d6 {[%clk 0:14:42]} 3. d4 {[%clk 0:16:32]}  cxd4 {[%clk 0:14:42]} 4. Nxd4 {[%clk 0:16:32]}  Nf6 {[%clk 0:14:42]} 5. Nc3 {[%clk 0:16:32]}  g6 {[%clk 0:14:42]} 6. Be3 {[%clk 0:16:32]}  Bg7 {[%clk 0:14:42]} 7. f3 {[%clk 0:16:32]}  O-O {[%clk 0:14:42]} 8. Qd2 {[%clk 0:16:32]}  Nc6 {[%clk 0:14:42]} 9. O-O-O {[%clk 0:16:32]}  d5 {[%clk 0:14:42]} 10. Nxc6 {[%clk 0:16:32]}  bxc6 {[%clk 0:14:42]} 11. Bh6 {[%clk 0:16:32]}  Qa5 {[%clk 0:11:29]} 12. Bxg7 {[%clk 0:16:32]}  Kxg7 {[%clk 0:11:29]} 13. g4 {[%clk 0:16:32]}  dxe4 {[%clk 0:07:23]} 14. Nxe4 {[%clk 0:12:44]}  Qxa2 {[%clk 0:07:23]} 15. Qc3 {[%clk 0:12:44]}  Kg8 {[%clk 0:07:23]} 16. Nxf6+ {[%clk 0:12:47]}  exf6 {[%clk 0:04:46]} 17. Bc4 {[%clk 0:12:47]}  Qa4 {[%clk 0:04:46]} 18. b3 {[%clk 0:12:47]}  Qa3+ {[%clk 0:04:46]} 19. Kb1 {[%clk 0:12:47]}  Ba6 {[%clk 0:03:20]} 20. Bxa6 {[%clk 0:12:22]}  Qxa6 {[%clk 0:00:21]} 21. Qxf6 {[%clk 0:12:22]}  Qb7 {[%clk 0:00:21]} 22. h4 {[%clk 0:12:22]}  Rae8 {[%clk 0:00:21]} 23. Rhe1 {[%clk 0:10:09]}  c5 {[%clk 0:01:10]} 24. h5 {[%clk 0:06:38]}  Qb6 {[%clk 0:00:00]} 25. Qc3 {[%clk 0:06:38]}  Qb4 {[%clk 0:00:00]} 26. Kb2 {[%clk 0:03:30]}  Rxe1 {[%clk 0:00:00]} 27. Rxe1 {[%clk 0:03:30]}  Rd8 {[%clk 0:00:00]} 28. h6 {[%clk 0:03:30]}  Qxc3+ {[%clk 0:00:00]} 29. Kxc3 {[%clk 0:03:30]}  Kf8 {[%clk 0:00:00]} 30. Re5 {[%clk 0:01:34]}  Rd4 {[%clk 0:00:31]} 31. Rxc5 {[%clk 0:01:34]}  Rf4 {[%clk 0:00:31]} 32. Rc8+ {[%clk 0:01:34]}  Ke7 {[%clk 0:00:31]} 33. Rh8 {[%clk 0:01:34]}  Rxf3+ {[%clk 0:00:27]} 34. Kd2 {[%clk 0:00:29]}  Rg3 {[%clk 0:00:27]} 35. Rxh7 {[%clk 0:00:29]}  Rxg4 {[%clk 0:00:27]} 36. Rh8 {[%clk 0:00:29]}  Rh4 {[%clk 0:00:27]} 37. c4 {[%clk 0:00:29]}  a5 {[%clk 0:00:27]} 38. c5 {[%clk 0:00:29]}  Kd7 {[%clk 0:00:27]} 39. h7 {[%clk 0:00:29]}  g5 {[%clk 0:00:09]} 40. Ke3 {[%clk 0:00:37]}  Kc7 {[%clk 0:00:09]} 41. Kf3 {[%clk 0:00:37]}  Rf4+ {[%clk 0:00:09]} 42. Kg3 {[%clk 0:00:37]}  Rh4 {[%clk 0:00:09]} 43. c6 {[%clk 0:00:37]}  Rh1 {[%clk 0:00:09]} 44. Kg4 {[%clk 0:00:37]}  Rg1+ {[%clk 0:00:09]} 45. Kf5 {[%clk 0:00:37]}  Rh1 {[%clk 0:00:09]} 46. Kxg5 {[%clk 0:00:37]}  Rh2 {[%clk 0:00:09]} 47. Kf6 {[%clk 0:00:37]}  Rf2+ {[%clk 0:00:09]} 48. Kg7 {[%clk 0:00:37]}  Rg2+ {[%clk 0:00:09]} 49. Kxf7 {[%clk 0:00:37]}  Rf2+ {[%clk 0:00:09]} 50. Kg6 {[%clk 0:00:37]}  Rg2+ {[%clk 0:00:09]} 51. Kf5 {[%clk 0:00:37]}  Rf2+ {[%clk 0:00:09]} 52. Ke4 {[%clk 0:00:37]}  Re2+ {[%clk 0:00:09]} 53. Kd3 {[%clk 0:00:37]}  Rh2 {[%clk 0:00:09]} 54. Ra8 {[%clk 0:00:37]}  Rh3+ {[%clk 0:01:10]} 55. Kc2 {[%clk 0:01:43]} 1-0


[Site "http://www.Chess.com"]

[Event "FIDE World Rapid Chess Championship 2021"]
[White "Toczek, Grzegorz"]
[Black "Yunusov, Mukhammad"]
[WhiteFideId "1106457"]
[BlackFideId "14700930"]
[WhiteElo "2220"]
[BlackElo "1832"]
[Result "1-0"]
[Round "10"]
[TimeControl "900+10"]
[Date "2021.12.28"]
[WhiteClock "0:06:26"]
[BlackClock "0:00:13"]

1. e4 {[%clk 0:15:00]}  c5 {[%clk 0:15:00]} 2. Nf3 {[%clk 0:15:01]}  d6 {[%clk 0:15:24]} 3. d4 {[%clk 0:15:01]}  cxd4 {[%clk 0:15:24]} 4. Nxd4 {[%clk 0:15:01]}  Nf6 {[%clk 0:15:24]} 5. Nc3 {[%clk 0:15:01]}  Nc6 {[%clk 0:15:24]} 6. Bg5 {[%clk 0:15:01]}  Bd7 {[%clk 0:15:24]} 7. Qd2 {[%clk 0:15:01]}  Rc8 {[%clk 0:15:24]} 8. f4 {[%clk 0:15:01]}  Nxd4 {[%clk 0:12:46]} 9. Qxd4 {[%clk 0:15:12]}  Qa5 {[%clk 0:12:46]} 10. e5 {[%clk 0:15:12]}  Ng4 {[%clk 0:05:55]} 11. exd6 {[%clk 0:13:10]}  Qc5 {[%clk 0:05:55]} 12. Qxc5 {[%clk 0:13:10]}  Rxc5 {[%clk 0:05:55]} 13. dxe7 {[%clk 0:11:38]}  Bxe7 {[%clk 0:04:58]} 14. Bxe7 {[%clk 0:11:38]}  Kxe7 {[%clk 0:04:58]} 15. Bd3 {[%clk 0:11:38]}  Bf5 {[%clk 0:01:29]} 16. Bxf5 {[%clk 0:09:50]}  Rxf5 {[%clk 0:01:29]} 17. O-O {[%clk 0:09:50]}  Rc8 {[%clk 0:01:38]} 18. Rad1 {[%clk 0:07:14]}  Kf8 {[%clk 0:01:38]} 19. Rd4 {[%clk 0:06:26]}  Ne3 {[%clk 0:00:13]} 20. Rf2 {[%clk 0:06:26]}  b5 {[%clk 0:00:13]} 21. Rf1 {[%clk 0:06:26]}  Kg8 {[%clk 0:00:13]} 22. Rf2 {[%clk 0:06:26]}  Kf8 {[%clk 0:00:13]} 23. Re2 {[%clk 0:06:26]}  Nc4 {[%clk 0:00:13]} 24. b3 {[%clk 0:06:26]}  Nb6 {[%clk 0:00:13]} 1-0


[Site "http://www.Chess.com"]

[Event "FIDE World Rapid Chess Championship 2021"]
[White "Caruana, Fabiano"]
[Black "Duda, Jan-Krzysztof"]
[WhiteFideId "2020009"]
[BlackFideId "1170546"]
[WhiteElo "2770"]
[BlackElo "2801"]
[Result "1/2-1/2"]
[Round "11"]
[TimeControl "900+10"]
[Date "2021.12.28"]
[WhiteClock "0:02:55"]
[BlackClock "0:01:00"]

1. c4 {[%clk 0:15:00]}  e6 {[%clk 0:15:00]} 2. Nc3 {[%clk 0:15:00]}  Nf6 {[%clk 0:15:00]} 3. d4 {[%clk 0:15:00]}  Bb4 {[%clk 0:15:00]} 4. Qc2 {[%clk 0:15:00]}  O-O {[%clk 0:15:00]} 5. e4 {[%clk 0:15:00]}  d5 {[%clk 0:15:01]} 6. e5 {[%clk 0:16:01]}  Ne4 {[%clk 0:15:01]} 7. Bd3 {[%clk 0:16:01]}  c5 {[%clk 0:15:01]} 8. Nf3 {[%clk 0:16:01]}  cxd4 {[%clk 0:15:01]} 9. Nxd4 {[%clk 0:16:01]}  Nd7 {[%clk 0:15:01]} 10. Bf4 {[%clk 0:16:01]}  Ndc5 {[%clk 0:14:58]} 11. O-O {[%clk 0:16:08]}  Bxc3 {[%clk 0:14:58]} 12. bxc3 {[%clk 0:16:08]}  Nxd3 {[%clk 0:14:58]} 13. Qxd3 {[%clk 0:16:08]}  b6 {[%clk 0:14:58]} 14. cxd5 {[%clk 0:16:16]}  Qxd5 {[%clk 0:12:05]} 15. c4 {[%clk 0:16:16]}  Nc5 {[%clk 0:12:03]} 16. Qc3 {[%clk 0:12:38]}  Qe4 {[%clk 0:12:03]} 17. Bg3 {[%clk 0:12:38]}  Qd3 {[%clk 0:10:20]} 18. Qxd3 {[%clk 0:12:23]}  Nxd3 {[%clk 0:07:36]} 19. Nb5 {[%clk 0:12:23]}  Bd7 {[%clk 0:07:36]} 20. Nd6 {[%clk 0:12:23]}  Ba4 {[%clk 0:06:58]} 21. f4 {[%clk 0:10:11]}  f6 {[%clk 0:06:48]} 22. Rf3 {[%clk 0:09:44]}  Nc5 {[%clk 0:06:48]} 23. exf6 {[%clk 0:07:07]}  Rxf6 {[%clk 0:04:53]} 24. Bh4 {[%clk 0:06:37]}  Rg6 {[%clk 0:04:18]} 25. Re3 {[%clk 0:06:37]}  Bc6 {[%clk 0:04:08]} 26. g3 {[%clk 0:03:06]}  Rf8 {[%clk 0:01:06]} 27. Rf1 {[%clk 0:03:23]}  e5 {[%clk 0:01:06]} 28. fxe5 {[%clk 0:03:23]}  Rxf1+ {[%clk 0:01:06]} 29. Kxf1 {[%clk 0:03:23]}  Re6 {[%clk 0:01:06]} 30. g4 {[%clk 0:03:23]}  Ne4 {[%clk 0:01:06]} 31. Nxe4 {[%clk 0:02:55]}  Rxe5 {[%clk 0:01:00]} 32. Nf6+ {[%clk 0:02:55]}  gxf6 {[%clk 0:01:00]} 33. Rxe5 {[%clk 0:02:55]}  fxe5 {[%clk 0:01:00]} 34. Kf2 {[%clk 0:02:55]}  Bd7 {[%clk 0:01:00]} 35. Bg3 {[%clk 0:02:55]}  Bxg4 {[%clk 0:01:00]} 36. Bxe5 {[%clk 0:02:55]}  Be6 {[%clk 0:01:00]} 37. Bb8 {[%clk 0:02:55]}  Bxc4 {[%clk 0:01:00]} 38. Bxa7 {[%clk 0:02:55]}  Bxa2 {[%clk 0:01:00]} 39. Bxb6 {[%clk 0:02:55]}  Kf7 {[%clk 0:01:00]} 1/2-1/2


[Site "http://www.Chess.com"]